fUSD/lending_fUSD_20241216
["ID","MTS","AMOUNT","RATE_DAILY","PERIOD"]
[345569431,1734357042363,-500.0,0.00024999,3]
[345569432,1734357042373,-500.0,0.00024999,3]
[345569433,1734357042382,-500.0,0.00024999,3]
[345569434,1734357042392,-500.0,0.00024999,3]
[345569435,1734357042402,-500.0,0.00024999,3]
[345569436,1734357042414,-500.0,0.00024999,3]
[345569437,1734357042423,-257.71832444,0.00024999,3]
[345569438,1734357042432,-500.0,0.00024999,3]
[345569439,1734357042442,-500.0,0.00024999,3]
[345569440,1734357042451,-500.0,0.00024999,3]
[345569441,1734357042460,-500.0,0.00024999,3]
[345569443,1734357042470,-500.0,0.00024999,3]
[345569445,1734357042479,-500.0,0.00024999,3]
[345569447,1734357042489,-500.0,0.00024999,3]
[345569449,1734357042498,-500.0,0.00024999,3]
[345569450,1734357042507,-500.0,0.00024999,3]
[345569451,1734357042517,-329.41704708,0.00024999,3]
[345569452,1734357042526,-500.0,0.00024999,3]
[345569453,1734357042536,-500.0,0.00024999,3]
[345569454,1734357042545,-500.0,0.00024999,3]
[345569455,1734357042555,-500.0,0.00024999,3]
[345569456,1734357042564,-500.0,0.00024999,3]
[345569457,1734357042573,-500.0,0.00024999,3]
[345569458,1734357042582,-500.0,0.00024999,3]
[345569459,1734357042592,-500.0,0.00024999,3]
[345569460,1734357042601,-500.0,0.00024999,3]
[345569461,1734357042610,-353.32805361,0.00024999,3]
[345569462,1734357042619,-500.0,0.00024999,3]
[345569463,1734357042628,-500.0,0.00024999,3]
[345569464,1734357042637,-500.0,0.00024999,3]
[345569465,1734357042646,-500.0,0.00024999,3]
[345569466,1734357042658,-500.0,0.00024999,3]
[345569467,1734357042667,-627.14387099,0.00024999,3]
[345569468,1734357042676,-500.0,0.00024999,3]
[345569469,1734357042686,-500.0,0.00024999,3]
[345569470,1734357042695,-500.0,0.00024999,3]
[345569471,1734357042704,-500.0,0.00024999,3]
[345569472,1734357042713,-500.0,0.00024999,3]
[345569473,1734357042721,-500.0,0.00024999,3]
[345569474,1734357042731,-500.0,0.00024999,3]
[345569475,1734357042739,-500.0,0.00024999,3]
[345569476,1734357042749,-500.0,0.00024999,3]
[345569477,1734357042759,-500.0,0.00024999,3]
[345569478,1734357042768,-500.0,0.00024999,3]
[345569479,1734357042777,-500.0,0.00024999,3]
[345569480,1734357042786,-500.0,0.00024999,3]
[345569481,1734357042795,-500.0,0.00024999,3]
[345569482,1734357042805,-500.0,0.00024999,3]
[345569483,1734357042813,-500.0,0.00024999,3]
[345569484,1734357042822,-546.80015131,0.00024999,3]
[345569485,1734357042831,-551.05,0.00024999,3]
[345569486,1734357042841,-551.05,0.00024999,3]
[345569487,1734357042850,-551.05,0.00024999,3]
[345569488,1734357042858,-551.05,0.00024999,3]
[345569489,1734357042867,-551.05,0.00024999,3]
[345569490,1734357042876,-551.05,0.00024999,3]
[345569491,1734357042886,-551.05,0.00024999,3]
[345569492,1734357042896,-551.05,0.00024999,3]
[345569493,1734357042908,-551.05,0.00024999,3]
[345569494,1734357042919,-551.05,0.00024999,3]
[345569495,1734357042928,-551.05,0.00024999,3]
[345569496,1734357042938,-551.05,0.00024999,3]
[345569497,1734357042947,-551.05,0.00024999,3]
[345569498,1734357042957,-551.05,0.00024999,3]
[345569499,1734357042968,-551.05,0.00024999,3]
[345569500,1734357042978,-551.05,0.00024999,3]
[345569501,1734357042987,-551.05,0.00024999,3]
[345569502,1734357042996,-551.05,0.00024999,3]
[345569503,1734357043006,-551.05,0.00024999,3]
[345569504,1734357043014,-551.05,0.00024999,3]
[345569505,1734357043023,-551.17064679,0.00024999,3]
[345569506,1734357043033,-537.03,0.00024999,3]
[345569507,1734357043042,-537.03,0.00024999,3]
[345569508,1734357043051,-537.03,0.00024999,3]
[345569509,1734357043059,-537.03,0.00024999,3]
[345569510,1734357043068,-537.03,0.00024999,3]
[345569511,1734357043078,-537.03,0.00024999,3]
[345569512,1734357043091,-537.03,0.00024999,3]
[345569513,1734357043101,-537.03,0.00024999,3]
[345569515,1734357043111,-537.03,0.00024999,3]
[345569516,1734357043120,-537.03,0.00024999,3]
[345569517,1734357043131,-537.03,0.00024999,3]
[345569518,1734357043146,-537.03,0.00024999,3]
[345569520,1734357043157,-537.03,0.00024999,3]
[345569521,1734357043166,-537.03,0.00024999,3]
[345569523,1734357043176,-537.03,0.00024999,3]
[345569525,1734357043186,-537.03,0.00024999,3]
[345569527,1734357043195,-537.03,0.00024999,3]
[345569529,1734357043206,-537.03,0.00024999,3]
[345569531,1734357043216,-537.03,0.00024999,3]
[345569534,1734357043226,-537.03,0.00024999,3]
[345569536,1734357043235,-537.03,0.00024999,3]
[345569537,1734357043245,-537.17292747,0.00024999,3]
[345569539,1734357043254,-500.0,0.00024999,3]
[345569541,1734357043264,-500.0,0.00024999,3]
[345569544,1734357043274,-541.42371486,0.00024999,3]
[345569546,1734357043284,-36937.45030972,0.00025,2]
[345569548,1734357043294,-674365.63789656,0.00025,4]
[345569550,1734357043303,-201.03,0.00025,2]
[345569553,1734357043312,-11635743.21856088,0.00025,2]
[345569572,1734357043459,-234021.76962292,0.00025,2]
[345569573,1734357043471,-149630.96324277,0.00025,2]
[345569574,1734357043494,-12369.19361549,0.00025,2]
[345569575,1734357043505,-4663.86000004,0.00025,2]
[345569576,1734357043516,-1741.9012073,0.00025,2]
[345569577,1734357043546,-1099.0,0.00020659,2]
[345569578,1734357043555,-1035.576,0.00023659,2]
[345569579,1734357043565,-500.0,0.00024624,3]
[345569580,1734357043575,-235.4756063,0.00024686,3]
[345569582,1734357043584,-2326.4483937,0.00025,2]
[345569584,1734357043596,-649.42887361,0.00025,2]
[345569586,1734357043607,-1028.617992,0.00025,2]
[345569589,1734357043619,-265.08254144,0.00025,2]
[345569591,1734357043630,-321.26159861,0.00025,2]
[345569611,1734357045504,-10381.0,0.00025,2]
[345569612,1734357045565,-500.0,0.00021917,3]
[345569613,1734357045575,-3383.27063563,0.00025,2]
[345569614,1734357045587,-874.21036601,0.00025,2]
[345569615,1734357045626,-269.7698878,0.00025,2]
[345569616,1734357045688,-4160.12544,0.00025,2]
[345569617,1734357045750,-780.82355688,0.00025,2]
[345569618,1734357045762,-415.02,0.00025,2]
[345569619,1734357045810,-500.0,0.00021917,3]
[345569620,1734357045819,-14900.0,0.00025,2]
[345569621,1734357045831,-4560.0,0.00025,2]
[345569622,1734357045843,-5862.55160518,0.00025,2]
[345569627,1734357249410,10000.0,0.00019,30]
[345569628,1734357263635,10000.0,0.00019,30]
[345569629,1734357279310,2330.0,0.00019,30]
[345569631,1734357651243,244.24710634,0.00021,120]
[345569632,1734357675961,159902.0,0.00021,120]
[345569633,1734357713336,154.29,0.00010137,2]
[345569635,1734358026097,-165.68,0.00018743,2]
[345569636,1734358026119,-36.65249193,0.00018743,2]
[345569637,1734358034100,-985.36750807,0.00018743,2]
[345569638,1734358034121,-203.17,0.00018752,2]
[345569639,1734358034142,-243.72747191,0.00018801,2]
[345569640,1734358150089,-476.46182826,0.00016812,2]
[345569641,1734358156106,-165.8258,0.00016812,2]
[345569642,1734358164136,-40.68237174,0.00016812,2]
[345569643,1734358164157,-300.0,0.00018719,2]
[345569644,1734358164176,-5577.83446555,0.0001872,2]
[345569647,1734358231843,-428.73000001,0.0001872,2]
[345569648,1734358231856,-334.08774945,0.0001872,2]
[345569649,1734358231868,-371.35,0.0001872,2]
[345569650,1734358231943,-5127.86778499,0.0001872,2]
[345569651,1734358231953,-250.0,0.0001873,2]
[345569652,1734358231963,-218.91,0.00018749,2]
[345569653,1734358231972,-51.77252809,0.00018801,2]
[345569654,1734358231982,-3932.9,0.00018813,2]
[345569655,1734358231991,-7242.19,0.00018869,2]
[345569656,1734358232001,-682.97,0.00019076,2]
[345569657,1734358232011,-508.27,0.00019292,2]
[345569658,1734358232020,-1026.96,0.00019292,2]
[345569659,1734358232030,-1026.96,0.00019298,2]
[345569660,1734358232039,-167.35,0.00019299,2]
[345569661,1734358232048,-1026.96,0.00019303,2]
[345569662,1734358232057,-1026.96,0.00019308,2]
[345569663,1734358232066,-1026.96,0.00019313,2]
[345569664,1734358232075,-1026.96,0.00019318,2]
[345569665,1734358232084,-1026.96,0.00019323,2]
[345569666,1734358232094,-1026.96,0.00019328,2]
[345569667,1734358232103,-1026.96,0.00019333,2]
[345569668,1734358232112,-1026.96,0.00019338,2]
[345569669,1734358232121,-1026.96,0.00019343,2]
[345569670,1734358232131,-1026.96,0.00019348,2]
[345569671,1734358232140,-1026.96,0.00019353,2]
[345569672,1734358232150,-1026.96,0.00019358,2]
[345569673,1734358232159,-1026.96,0.00019363,2]
[345569674,1734358232168,-695.0,0.00019368,2]
[345569675,1734358232177,-1026.96,0.00019368,2]
[345569676,1734358232187,-1026.96,0.00019374,2]
[345569677,1734358232196,-1026.96,0.00019379,2]
[345569678,1734358232205,-1026.96,0.00019384,2]
[345569679,1734358232215,-1026.96,0.00019389,2]
[345569680,1734358232225,-203.17,0.00019446,2]
[345569681,1734358232237,-262.34,0.00019464,2]
[345569682,1734358232245,-509.03,0.00019548,2]
[345569683,1734358232255,-250.0,0.00019636,2]
[345569684,1734358232264,-218.91,0.00019686,2]
[345569685,1734358232273,-231.43230743,0.00019755,2]
[345569686,1734358232283,-150.0,0.0002,2]
[345569687,1734358232292,-750.09,0.00020005,2]
[345569688,1734358232301,-739.61,0.00020008,2]
[345569689,1734358232311,-756.7,0.00020009,2]
[345569690,1734358232320,-750.35,0.00020011,2]
[345569691,1734358232330,-758.06,0.00020013,2]
[345569692,1734358232340,-742.35,0.00020016,2]
[345569694,1734358232349,-735.4,0.0002002,2]
[345569695,1734358232358,-738.72,0.00020024,2]
[345569696,1734358232367,-747.72,0.00020028,2]
[345569697,1734358232376,-2751.0,0.00020032,2]
[345569698,1734358232385,-764.09,0.00020034,2]
[345569699,1734358232395,-401.02103549,0.0002004,2]
[345569700,1734358232407,-351.25896451,0.0002004,2]
[345569701,1734358232417,-476.74103549,0.00020048,2]
[345569702,1734358232428,-271.27896451,0.00020048,2]
[345569703,1734358232438,-743.68,0.00020058,2]
[345569704,1734358232447,-751.72,0.00020069,2]
[345569705,1734358232455,-748.68,0.00020083,2]
[345569706,1734358232464,-738.72,0.000201,2]
[345569707,1734358232474,-5816.7602,0.0002012,2]
[345569708,1734358232483,-4578.4329,0.0002012,2]
[345569709,1734358232492,-2500.0,0.0002012,2]
[345569710,1734358232501,-757.63,0.0002012,2]
[345569711,1734358232513,-738.87,0.0002012,2]
[345569712,1734358232522,-763.65,0.0002012,2]
[345569713,1734358232531,-746.22,0.0002012,2]
[345569714,1734358232540,-203.17,0.0002014,2]
[345569715,1734358232550,-750.58,0.00020219,2]
[345569716,1734358232559,-33130.51421386,0.0002022,3]
[345569718,1734358237875,-288.9699825,0.0002022,3]
[345569719,1734358238069,-3259.27953756,0.0002022,3]
[345569720,1734358238080,-1947.44,0.0002022,3]
[345569721,1734358238091,-8910.95347758,0.0002022,3]
[345569722,1734358238105,-2984.19087952,0.0002022,3]
[345569723,1734358238183,-126249.65190898,0.0002022,3]
[345569724,1734358238193,-1307.39075571,0.0002048,2]
[345569725,1734358238202,-3882.0,0.00020549,2]
[345569726,1734358238210,-150.0,0.00020549,2]
[345569727,1734358238219,-1004.54650649,0.0002058,2]
[345569728,1734358238229,-218.91,0.00020624,2]
[345569729,1734358238239,-1447.91693136,0.00020734,2]
[345569730,1734358238248,-500.0,0.00020802,2]
[345569731,1734358238257,-597.14228043,0.00020802,2]
[345569732,1734358238266,-362.741742,0.00020802,2]
[345569733,1734358238276,-500.0,0.00020802,2]
[345569735,1734358238286,-500.0,0.00020802,2]
[345569737,1734358238295,-500.0,0.00020802,2]
[345569738,1734358238303,-500.0,0.00020802,2]
[345569739,1734358238312,-500.0,0.00020802,2]
[345569740,1734358238321,-200.0,0.00020803,2]
[345569741,1734358238330,-200.0,0.00020803,2]
[345569742,1734358238339,-104675.0,0.00020803,3]
[345569743,1734358238348,-203.17,0.00020834,2]
[345569744,1734358238358,-150.0,0.00020966,2]
[345569745,1734358238367,-1307.39075563,0.00020971,2]
[345569746,1734358238376,-10000.0,0.00021,2]
[345569747,1734358238385,-500.0,0.00021164,2]
[345569748,1734358238394,-1447.91693135,0.00021197,2]
[345569749,1734358238403,-500.0,0.00021209,2]
[345569750,1734358238412,-682.97,0.0002134,2]
[345569751,1734358238421,-1307.39075563,0.00021462,2]
[345569752,1734358238430,-203.17,0.00021528,2]
[345569753,1734358238439,-218.91,0.00021561,2]
[345569754,1734358238448,-1447.91693135,0.0002166,2]
[345569755,1734358238457,-268.44,0.00021757,2]
[345569756,1734358238467,-150.99,0.00021757,2]
[345569757,1734358238477,-4315.99,0.00021757,2]
[345569758,1734358238487,-1374.82,0.00021757,2]
[345569759,1734358238496,-299.99,0.00021757,7]
[345569760,1734358238506,-9999.99,0.00021757,2]
[345569761,1734358238519,-466.48608159,0.00021817,2]
[345569762,1734358238528,-262.34,0.00021897,2]
[345569763,1734358238538,-209.23556768,0.00021907,2]
[345569764,1734358238548,-745.94,0.00021916,2]
[345569765,1734358238556,-758.53,0.00021917,2]
[345569766,1734358238565,-500.0,0.00021917,3]
[345569767,1734358238575,-500.0,0.00021917,3]
[345569768,1734358238585,-500.0,0.00021917,3]
[345569769,1734358238595,-588.80540933,0.00021917,3]
[345569770,1734358238605,-500.0,0.00021917,3]
[345569771,1734358238614,-500.0,0.00021917,3]
[345569772,1734358238623,-500.0,0.00021917,3]
[345569773,1734358238633,-533.95,0.00021917,3]
[345569774,1734358238642,-533.95,0.00021917,3]
[345569775,1734358238652,-533.95,0.00021917,3]
[345569776,1734358238661,-533.95,0.00021917,3]
[345569777,1734358238671,-533.95,0.00021917,3]
[345569778,1734358238680,-533.95,0.00021917,3]
[345569779,1734358238690,-533.95,0.00021917,3]
[345569780,1734358238699,-533.95,0.00021917,3]
[345569781,1734358238708,-533.95,0.00021917,3]
[345569782,1734358238718,-533.95,0.00021917,3]
[345569783,1734358238729,-533.95,0.00021917,3]
[345569784,1734358238740,-533.95,0.00021917,3]
[345569785,1734358238753,-533.95,0.00021917,3]
[345569786,1734358238763,-533.95,0.00021917,3]
[345569787,1734358238772,-533.95,0.00021917,3]
[345569788,1734358238782,-533.95,0.00021917,3]
[345569789,1734358238791,-533.95,0.00021917,3]
[345569790,1734358238801,-533.95,0.00021917,3]
[345569791,1734358238810,-533.95,0.00021917,3]
[345569792,1734358238819,-533.95,0.00021917,3]
[345569793,1734358238829,-533.95,0.00021917,3]
[345569794,1734358238838,-533.95,0.00021917,3]
[345569795,1734358238847,-533.95,0.00021917,3]
[345569796,1734358238856,-533.95292747,0.00021917,3]
[345569797,1734358238866,-500.0,0.00021917,3]
[345569798,1734358238875,-500.0,0.00021917,3]
[345569799,1734358238884,-500.0,0.00021917,3]
[345569800,1734358238894,-524.7,0.00021917,3]
[345569801,1734358238903,-500.0,0.00021917,3]
[345569802,1734358238912,-229.38,0.00021917,3]
[345569803,1734358238921,-289.93,0.00021917,3]
[345569804,1734358238930,-500.0,0.00021917,3]
[345569805,1734358238940,-505.93116552,0.00021917,3]
[345569806,1734358238949,-500.0,0.00021917,3]
[345569807,1734358238958,-500.0,0.00021917,3]
[345569808,1734358238967,-500.0,0.00021917,3]
[345569809,1734358238976,-500.0,0.00021917,3]
[345569810,1734358238986,-500.0,0.00021917,3]
[345569811,1734358238995,-500.0,0.00021917,3]
[345569812,1734358239005,-500.0,0.00021917,3]
[345569813,1734358239014,-500.0,0.00021917,3]
[345569814,1734358239024,-500.0,0.00021917,3]
[345569815,1734358239033,-500.0,0.00021917,3]
[345569816,1734358239042,-500.0,0.00021917,3]
[345569817,1734358239051,-500.0,0.00021917,3]
[345569818,1734358239059,-500.0,0.00021917,3]
[345569819,1734358239069,-500.0,0.00021917,3]
[345569820,1734358239078,-500.0,0.00021917,3]
[345569821,1734358239087,-500.0,0.00021917,3]
[345569822,1734358239096,-500.0,0.00021917,3]
[345569823,1734358239105,-500.0,0.00021917,3]
[345569824,1734358239115,-500.0,0.00021917,3]
[345569825,1734358239123,-612.04,0.00021917,3]
[345569826,1734358239133,-500.0,0.00021917,3]
[345569827,1734358239142,-500.0,0.00021917,3]
[345569828,1734358239151,-340.79156331,0.00021917,2]
[345569829,1734358239160,-500.0,0.00021917,3]
[345569830,1734358239169,-200.0,0.00021917,3]
[345569831,1734358239178,-500.0,0.00021917,2]
[345569832,1734358239187,-631.05,0.00021917,2]
[345569833,1734358239196,-500.0,0.00021917,3]
[345569834,1734358239205,-500.45941026,0.00021917,3]
[345569835,1734358239214,-500.0,0.00021917,3]
[345569836,1734358239223,-545.16,0.00021917,3]
[345569837,1734358239240,-521.78389225,0.00021917,3]
[345569838,1734358239250,-379.5793356,0.00021917,3]
[345569839,1734358239259,-500.0,0.00021917,3]
[345569840,1734358239268,-500.0,0.00021917,3]
[345569841,1734358239277,-500.0,0.00021917,3]
[345569842,1734358239287,-575.68,0.00021917,3]
[345569843,1734358239296,-500.0,0.00021917,3]
[345569844,1734358239306,-500.0,0.00021917,3]
[345569845,1734358239315,-500.0,0.00021917,3]
[345569846,1734358239324,-500.0,0.00021917,3]
[345569847,1734358239334,-270.97091631,0.00021917,3]
[345569848,1734358239343,-500.0,0.00021917,3]
[345569849,1734358239352,-500.0,0.00021917,3]
[345569850,1734358239361,-500.0,0.00021917,3]
[345569851,1734358239372,-500.0,0.00021917,3]
[345569852,1734358239381,-500.0,0.00021917,3]
[345569853,1734358239391,-500.0,0.00021917,3]
[345569854,1734358239400,-500.0,0.00021917,3]
[345569855,1734358239409,-500.0,0.00021917,3]
[345569856,1734358239418,-500.0,0.00021917,3]
[345569857,1734358239427,-500.0,0.00021917,3]
[345569858,1734358239436,-500.0,0.00021917,3]
[345569859,1734358239445,-215.46,0.00021917,3]
[345569860,1734358239454,-500.0,0.00021917,3]
[345569861,1734358239463,-500.0,0.00021917,3]
[345569862,1734358239472,-500.0,0.00021917,3]
[345569863,1734358239486,-605.45,0.00021917,3]
[345569864,1734358239495,-500.0,0.00021917,3]
[345569865,1734358239505,-500.0,0.00021917,3]
[345569866,1734358239519,-499.00358025,0.00021917,3]
[345569867,1734358239528,-500.0,0.00021917,3]
[345569868,1734358239538,-500.0,0.00021917,3]
[345569869,1734358239547,-500.0,0.00021917,3]
[345569870,1734358239558,-500.0,0.00021917,3]
[345569871,1734358239567,-614.15,0.00021917,3]
[345569872,1734358239576,-500.0,0.00021917,3]
[345569873,1734358239586,-500.0,0.00021917,3]
[345569874,1734358239595,-559.17,0.00021917,3]
[345569875,1734358239605,-270.43,0.00021917,3]
[345569876,1734358239615,-500.0,0.00021917,3]
[345569877,1734358239624,-500.0,0.00021917,3]
[345569878,1734358239634,-500.0,0.00021917,3]
[345569879,1734358239643,-500.0,0.00021917,3]
[345569880,1734358239652,-647.18,0.00021917,3]
[345569881,1734358239661,-500.0,0.00021917,3]
[345569882,1734358239671,-500.0,0.00021917,3]
[345569883,1734358239681,-500.0,0.00021917,3]
[345569884,1734358239691,-500.0,0.00021917,3]
[345569885,1734358239702,-500.0,0.00021917,3]
[345569886,1734358239712,-499.78866553,0.00021917,3]
[345569887,1734358239721,-534.23451324,0.00021917,3]
[345569888,1734358239733,-500.73626573,0.00021917,3]
[345569889,1734358239743,-500.94212282,0.00021917,3]
[345569890,1734358239752,-500.0,0.00021917,3]
[345569891,1734358239761,-500.0,0.00021917,3]
[345569892,1734358239770,-500.0,0.00021917,3]
[345569893,1734358239779,-500.0,0.00021917,3]
[345569894,1734358239788,-500.0,0.00021917,3]
[345569895,1734358239797,-500.0,0.00021917,3]
[345569896,1734358239806,-185.9674294,0.00021917,3]
[345569897,1734358239815,-501.09494045,0.00021917,3]
[345569898,1734358239824,-500.0,0.00021917,3]
[345569899,1734358239833,-500.0,0.00021917,3]
[345569900,1734358239843,-521.18,0.00021917,3]
[345569901,1734358239852,-500.0,0.00021917,3]
[345569902,1734358239861,-500.0,0.00021917,3]
[345569903,1734358239871,-500.0,0.00021917,3]
[345569904,1734358239879,-500.0,0.00021917,3]
[345569905,1734358239889,-500.0,0.00021917,3]
[345569906,1734358239898,-544.14,0.00021917,3]
[345569907,1734358239907,-500.0,0.00021917,3]
[345569908,1734358239916,-500.43279599,0.00021917,3]
[345569909,1734358239925,-500.0,0.00021917,3]
[345569910,1734358239934,-500.0,0.00021917,3]
[345569911,1734358239943,-501.38214506,0.00021917,3]
[345569912,1734358239952,-500.0,0.00021917,3]
[345569913,1734358239961,-500.0,0.00021917,3]
[345569914,1734358239970,-512.33,0.00021917,3]
[345569915,1734358239980,-501.42783348,0.00021917,3]
[345569916,1734358239989,-477.0,0.00021917,3]
[345569917,1734358239999,-500.45298067,0.00021917,3]
[345569918,1734358240007,-500.0,0.00021917,3]
[345569919,1734358240017,-500.0,0.00021917,3]
[345569920,1734358240026,-500.0,0.00021917,3]
[345569921,1734358240035,-500.0,0.00021917,3]
[345569922,1734358240044,-500.0,0.00021917,3]
[345569923,1734358240053,-347.02,0.00021917,3]
[345569924,1734358240063,-187.9215932,0.00021917,3]
[345569925,1734358240072,-487.08214501,0.00021917,3]
[345569926,1734358240081,-500.0,0.00021917,3]
[345569927,1734358240090,-500.0,0.00021917,3]
[345569928,1734358240099,-500.0,0.00021917,3]
[345569929,1734358240109,-500.0,0.00021917,3]
[345569930,1734358240118,-500.0,0.00021917,3]
[345569931,1734358240127,-500.0,0.00021917,3]
[345569932,1734358240136,-500.0,0.00021917,3]
[345569933,1734358240145,-500.0,0.00021917,3]
[345569934,1734358240154,-500.0,0.00021917,3]
[345569935,1734358240163,-327.0,0.00021917,3]
[345569936,1734358240172,-640.66,0.00021917,3]
[345569937,1734358240182,-500.0,0.00021917,3]
[345569938,1734358240191,-500.0,0.00021917,3]
[345569939,1734358240200,-329.07,0.00021917,3]
[345569941,1734358240209,-500.43002403,0.00021917,3]
[345569943,1734358240219,-500.0,0.00021917,3]
[345569945,1734358240227,-500.0,0.00021917,3]
[345569947,1734358240238,-500.0,0.00021917,3]
[345569949,1734358240247,-500.4550819,0.00021917,3]
[345569951,1734358240257,-151.61,0.00021917,3]
[345569953,1734358240266,-500.0,0.00021917,3]
[345569955,1734358240275,-422.6852312,0.00021917,3]
[345569957,1734358240285,-500.0,0.00021917,3]
[345569959,1734358240294,-500.0,0.00021917,3]
[345569961,1734358240303,-500.0,0.00021917,3]
[345569963,1734358240313,-574.4,0.00021917,3]
[345569965,1734358240322,-500.0,0.00021917,3]
[345569967,1734358240331,-500.0,0.00021917,3]
[345569969,1734358240340,-500.0,0.00021917,3]
[345569971,1734358240349,-194.05455004,0.00021917,3]
[345569972,1734358240358,-500.0,0.00021917,3]
[345569973,1734358240368,-174.16,0.00021917,3]
[345569974,1734358240377,-500.64215663,0.00021917,3]
[345569975,1734358240386,-224.29408946,0.00021917,3]
[345569976,1734358240395,-500.0,0.00021917,3]
[345569977,1734358240407,-500.0,0.00021917,3]
[345569978,1734358240416,-500.0,0.00021917,3]
[345569979,1734358240425,-500.0,0.00021917,3]
[345569981,1734358240435,-500.0,0.00021917,3]
[345569982,1734358240444,-500.0,0.00021917,3]
[345569984,1734358240453,-500.0,0.00021917,3]
[345569986,1734358240462,-302.24550677,0.00021917,3]
[345569988,1734358240471,-500.0,0.00021917,3]
[345569990,1734358240481,-500.0,0.00021917,3]
[345569992,1734358240493,-500.0,0.00021917,3]
[345569994,1734358240503,-501.12170611,0.00021917,3]
[345569996,1734358240515,-500.0,0.00021917,3]
[345569998,1734358240524,-500.0,0.00021917,3]
[345570000,1734358240533,-500.0,0.00021917,3]
[345570002,1734358240543,-500.0,0.00021917,3]
[345570004,1734358240555,-500.0,0.00021917,3]
[345570006,1734358240564,-500.0,0.00021917,3]
[345570007,1734358240574,-500.0,0.00021917,3]
[345570008,1734358240585,-382.95298025,0.00021917,3]
[345570009,1734358240594,-500.73881882,0.00021917,3]
[345570010,1734358240603,-500.0,0.00021917,3]
[345570011,1734358240612,-500.0,0.00021917,3]
[345570012,1734358240621,-565.30706952,0.00021917,3]
[345570013,1734358240631,-500.0,0.00021917,3]
[345570014,1734358240640,-500.0,0.00021917,3]
[345570015,1734358240649,-503.43990828,0.00021917,3]
[345570016,1734358240658,-500.0,0.00021917,3]
[345570017,1734358240668,-500.48605179,0.00021917,3]
[345570018,1734358240677,-560.91,0.00021917,3]
[345570019,1734358240688,-500.0,0.00021917,3]
[345570020,1734358240697,-500.0,0.00021917,3]
[345570021,1734358240706,-500.0,0.00021917,3]
[345570022,1734358240715,-500.0,0.00021917,3]
[345570023,1734358240724,-500.0,0.00021917,3]
[345570024,1734358240735,-500.0,0.00021917,3]
[345570025,1734358240745,-500.0,0.00021917,3]
[345570026,1734358240754,-500.0,0.00021917,3]
[345570027,1734358240763,-500.0,0.00021917,3]
[345570028,1734358240772,-500.0,0.00021917,3]
[345570029,1734358240781,-500.0,0.00021917,3]
[345570030,1734358240791,-500.0,0.00021917,3]
[345570031,1734358240800,-500.0,0.00021917,3]
[345570032,1734358240809,-500.83505859,0.00021917,3]
[345570033,1734358240819,-258.68,0.00021917,3]
[345570034,1734358240828,-500.0,0.00021917,3]
[345570035,1734358240838,-500.0,0.00021917,3]
[345570036,1734358240847,-500.0,0.00021917,3]
[345570037,1734358240856,-500.0,0.00021917,3]